bitfinex/quotes_SOLUSD_20240809
["timestamp","ask_amount","ask_price","bid_price","bid_amount"]
[1723164445765,34.26914361,162.46,162.36,15.8397]
[1723164445976,6.1563,162.44,162.36,15.8397]
[1723164446180,32.73,162.48,162.44,6.1559]
[1723164446357,38.9363,162.5,162.45,6.1556]
[1723164446568,45.0,162.49,162.44,6.156]
[1723164446869,51.1542,162.49,162.43,6.1563]
[1723164447056,32.73,162.52,162.45,15.3888]
[1723164447265,6.1538,162.5,162.45,21.5445]
[1723164447555,6.1538,162.5,162.45,15.3888]
[1723164447879,6.155,162.47,162.41,15.3923]
[1723164448275,6.1553,162.46,162.41,21.5494]
[1723164448477,6.155,162.47,162.41,15.3923]
[1723164448679,6.1553,162.46,162.41,21.5495]
[1723164449190,32.73,162.5,162.45,15.389]
[1723164449783,6.1546,162.48,162.42,6.1565]
[1723164449981,6.155,162.47,162.42,6.1565]
[1723164450275,6.155,162.47,162.41,15.3926]
[1723164450276,32.73,162.5,162.44,6.1561]
[1723164450480,6.1545,162.49,162.43,6.1561]
[1723164450867,1.5388784,162.48,162.44,6.156]
[1723164451070,6.1545,162.49,162.44,6.156]
[1723164451071,32.73,162.52,162.44,15.3901]
[1723164451385,38.8831,162.52,162.47,6.1549]
[1723164451678,32.73,162.52,162.44,15.3901]
[1723164451894,38.883,162.52,162.46,6.1553]
[1723164452188,32.73,162.52,162.46,6.1553]
[1723164452559,6.1536,162.51,162.44,15.3901]
[1723164452783,32.73,162.52,162.47,6.1549]
[1723164453284,46.53873214,162.51,162.44,15.3901]
[1723164453575,6.1542,162.49,162.44,15.3901]
[1723164453777,6.1542,162.49,162.44,21.5461]
[1723164454328,32.73,162.48,162.4,15.3937]
[1723164454585,32.73,162.48,162.43,6.1564]
[1723164454768,38.8846,162.48,162.43,6.1564]
[1723164454970,38.8846,162.48,162.4,15.3937]
[1723164454971,1.5390675,162.47,162.4,15.3937]
[1723164455169,32.73,162.46,162.4,21.5509]
[1723164455375,32.73,162.44,162.38,6.158]
[1723164456266,1.53945441,162.43,162.36,31.2368]
[1723164456467,1.53966823,162.42,162.36,31.2368]
[1723164456672,1.53966823,162.42,162.36,15.3971]
[1723164456984,1.53966823,162.42,162.28,15.0536]
[1723164456985,32.73,162.38,162.28,15.0536]
[1723164457292,32.73,162.4,162.34,6.1598]
[1723164457485,45.0,162.43,162.34,15.3997]
[1723164457486,38.8872,162.42,162.34,15.3997]
[1723164457709,6.1604,162.33,162.26,46.2211]
[1723164457990,6.1615,162.3,162.24,6.1633]
[1723164458291,32.73,162.31,162.23,21.6358]
[1723164458495,32.73,162.31,162.25,15.4081]
[1723164458705,32.73,162.33,162.28,6.1621]
[1723164458865,34.27038343,162.32,162.23,15.0536]
[1723164459061,34.27038343,162.32,162.23,30.4631]
[1723164459062,32.73,162.3,162.23,30.4631]
[1723164459303,1.54072755,162.29,162.23,15.4095]
[1723164459590,1.54072755,162.29,162.24,6.1637]
[1723164460698,1.54072755,162.29,162.25,6.1632]
[1723164461198,32.73,162.32,162.26,15.4071]
[1723164461379,1.54048638,162.31,162.26,15.4071]
[1723164461590,1.54048638,162.31,162.27,6.1625]
[1723164461884,1.54048638,162.31,162.26,21.57]
[1723164462084,46.54048638,162.31,162.22,15.4103]
[1723164462280,32.73,162.3,162.22,15.4103]
[1723164462472,1.54075532,162.29,162.22,15.4103]
[1723164462668,1.54075532,162.29,162.24,6.1633]
[1723164462886,1.54075532,162.29,162.25,6.1632]
[1723164463089,32.73,162.32,162.25,15.4081]
[1723164463294,1.54056843,162.31,162.26,6.1625]
[1723164463466,38.8907,162.32,162.25,15.4081]
[1723164463467,32.73,162.32,162.25,15.4081]
[1723164463668,38.8902,162.34,162.28,6.1621]
[1723164463978,32.73,162.32,162.27,6.1625]
[1723164464190,32.73,162.32,162.28,15.4053]
[1723164466707,2.40013862,162.38,162.26,30.8141]
[1723164466903,32.73,162.32,162.23,16.0874]
[1723164467072,38.8915,162.3,162.24,6.1636]
[1723164467401,6.1618,162.29,162.24,6.1637]
[1723164467568,38.8914,162.3,162.24,6.1637]
[1723164467768,38.8914,162.3,162.25,6.1632]
[1723164468500,6.1611,162.31,162.26,6.1629]
[1723164468684,32.73,162.32,162.27,6.1625]
[1723164468883,38.8908,162.32,162.26,6.1629]
[1723164469096,38.8908,162.32,162.27,6.1624]
[1723164469304,32.73,162.32,162.25,15.408]
[1723164469469,32.73,162.3,162.23,16.0874]
[1723164469668,32.73,162.28,162.21,15.4112]
[1723164469890,32.73,162.28,162.23,6.1637]
[1723164470305,32.73,162.28,162.24,6.1634]
[1723164470510,32.73,162.28,162.21,15.4112]
[1723164470695,32.73,162.28,162.23,6.1637]
[1723164470899,32.73,162.28,162.24,6.1635]
[1723164471101,32.73,162.28,162.21,15.4112]
[1723164471102,40.43289999,162.28,162.23,6.1639]
[1723164471408,1.54086539,162.27,162.21,15.4112]
[1723164471612,38.8921,162.28,162.21,15.4112]
[1723164471794,32.73,162.28,162.21,15.4112]
[1723164472377,6.1626,162.27,162.21,21.5756]
[1723164472803,1.54104794,162.26,162.18,15.1006]
[1723164472979,40.43434794,162.26,162.2,6.165]
[1723164473178,40.43434794,162.26,162.21,6.1647]
[1723164473179,34.27104794,162.26,162.21,6.1647]
[1723164473390,32.73,162.26,162.22,6.1643]
[1723164473999,6.1634,162.25,162.19,15.4131]
[1723164474202,38.894,162.24,162.19,21.5786]
[1723164475107,32.73,162.24,162.2,6.165]
[1723164475411,32.73,162.26,162.22,15.411]
[1723164475617,32.73,162.26,162.22,21.5751]
[1723164476333,32.73,162.28,162.22,15.411]
[1723164476507,32.73,162.28,162.24,6.1636]
[1723164476826,32.73,162.28,162.23,6.164]
[1723164477594,6.1625,162.27,162.22,15.411]
[1723164477794,32.73,162.26,162.22,15.411]
[1723164479012,32.73,162.26,162.22,21.5754]
[1723164479187,32.73,162.26,162.23,6.1638]
[1723164479389,32.73,162.28,162.25,6.1632]
[1723164479792,32.73,162.3,162.28,6.162]
[1723164480004,32.73,162.3,162.27,6.1625]
[1723164480515,32.73,162.3,162.25,21.5708]
[1723164480900,38.8916,162.3,162.25,21.5708]
[1723164481121,32.73,162.3,162.25,21.5708]
[1723164481427,32.73,162.3,162.27,6.1622]
[1723164481799,32.73,162.32,162.28,6.1621]
[1723164482595,32.73,162.32,162.27,6.1625]
[1723164482794,32.73,162.32,162.25,15.4079]
[1723164482795,38.8908,162.32,162.25,15.4079]
[1723164483228,32.73,162.3,162.21,15.4115]
[1723164483401,38.8922,162.28,162.22,6.1641]
[1723164483603,6.1629,162.27,162.21,15.4115]
[1723164483811,32.73,162.26,162.22,6.1644]
[1723164484020,32.73,162.26,162.21,15.4115]
[1723164485439,32.73,162.26,162.18,15.1006]
[1723164485604,32.73,162.24,162.17,15.415]
[1723164485932,32.73,162.22,162.17,15.415]
[1723164486103,32.73,162.24,162.19,6.1654]
[1723164486306,6.3734,162.28,162.19,15.4131]
[1723164486522,32.73,162.27,162.19,15.4131]
[1723164486711,32.73,162.27,162.2,1.23275868]
[1723164486915,6.5807,162.32,162.21,16.6438821]
[1723164487113,6.1622,162.28,162.21,16.6438821]
[1723164487439,32.73,162.3,162.25,6.1632]
[1723164487637,32.73,162.32,162.24,1.23253361]
[1723164487927,38.8906,162.32,162.27,6.1625]
[1723164488115,32.73,162.3,162.24,6.4033]
[1723164488310,6.1625,162.27,162.23,15.1512]
[1723164488524,38.8929,162.26,162.22,15.4111]
[1723164488839,6.43246102,162.35,162.24,6.1636]
[1723164488840,38.8914,162.3,162.24,6.1636]
[1723164489027,6.1619,162.29,162.22,15.4111]
[1723164489226,32.73,162.28,162.22,15.4111]
[1723164490038,38.8923,162.28,162.23,6.164]
[1723164490223,6.1618,162.29,162.24,6.1636]
[1723164490620,6.1606,162.32,162.27,6.1622]
[1723164490932,6.1606,162.32,162.26,6.1628]
[1723164491124,6.3468,162.36,162.22,63.5511]
[1723164491125,32.73,162.29,162.22,15.411]
[1723164491331,1.54068603,162.28,162.22,21.5751]
[1723164492342,32.73,162.29,162.22,15.411]
[1723164492649,6.1627,162.27,162.22,21.5754]
[1723164492849,32.73,162.29,162.2,6.4033]
[1723164493029,6.1645,162.22,162.18,15.4142]
[1723164493215,6.1644,162.22,162.18,15.4142]
[1723164493421,38.8941,162.23,162.18,15.4142]
[1723164494146,32.73,162.23,162.18,15.4142]
[1723164494547,32.73,162.23,162.18,21.5801]
[1723164494857,32.73,162.23,162.18,15.4142]
[1723164495228,38.894,162.23,162.18,15.4142]
[1723164495622,38.894,162.23,162.18,21.5799]
[1723164495824,32.73,162.23,162.15,22.2822]
[1723164496125,6.1652,162.2,162.15,22.2822]
[1723164496439,32.73,162.21,162.15,22.2822]
[1723164496832,38.8941,162.23,162.15,22.2822]
[1723164497032,32.73,162.28,162.16,33.9630065]
[1723164497327,32.73,162.28,162.24,6.1636]
[1723164497519,38.8922,162.28,162.23,6.164]
[1723164497746,32.73,162.28,162.23,6.164]
[1723164498151,6.1618,162.29,162.24,6.1636]
[1723164498849,6.1622,162.28,162.22,21.5742]
[1723164499054,32.73,162.28,162.22,21.5742]
[1723164499353,6.1626,162.27,162.22,21.5744]
[1723164499523,6.1621,162.29,162.24,6.1636]
[1723164499727,6.297,162.32,162.24,6.1636]
[1723164499728,6.1614,162.3,162.24,6.1636]
[1723164499926,6.1614,162.3,162.22,30.9123]
[1723164499927,32.73,162.31,162.25,15.4079]
[1723164500229,6.1614,162.3,162.25,15.4079]
[1723164500429,32.73,162.29,162.22,15.5021]
[1723164500655,32.73,162.27,162.17,31.7991]
[1723164500825,6.164,162.23,162.17,31.7991]
[1723164501023,6.1637,162.24,162.18,6.1657]
[1723164501255,9.66412816,162.26,162.2,15.4128]
[1723164501440,38.8925,162.27,162.21,6.1648]
[1723164501928,38.8925,162.27,162.22,6.1643]
[1723164502265,6.1622,162.28,162.23,6.164]
[1723164503356,32.73,162.27,162.2,15.4128]
[1723164503974,6.1625,162.28,162.23,6.164]
[1723164504544,6.1627,162.27,162.22,6.1644]
[1723164504941,6.1637,162.24,162.18,6.1656]
[1723164505143,34.27106535,162.23,162.17,16.3841]
[1723164505345,32.73,162.21,162.17,16.3841]
[1723164506074,32.73,162.25,162.18,15.414]
[1723164506283,38.8925,162.27,162.18,1.23283256]
[1723164506966,6.1635,162.25,162.2,21.5772]
[1723164507180,6.1652,162.2,162.17,16.3841]
[1723164507778,32.73,162.21,162.1,63.5737]
[1723164507779,6.1671,162.15,162.1,15.5561]
[1723164507989,32.73,162.18,162.12,6.1682]
[1723164508151,6.1659,162.19,162.11,15.4215]
[1723164508352,32.73,162.2,162.15,6.167]
[1723164508547,6.165,162.21,162.14,15.4187]
[1723164508548,6.165,162.21,162.16,6.1665]
[1723164508963,32.73,162.22,162.16,6.1665]
[1723164509169,38.8944,162.22,162.16,6.1665]
[1723164509479,6.165,162.21,162.16,6.1665]
[1723164509689,6.165,162.21,162.15,6.1671]
[1723164511069,38.8945,162.22,162.16,6.1664]
[1723164511264,32.73,162.22,162.17,6.1662]
[1723164511461,32.73,162.22,162.18,6.1658]
[1723164511676,38.8929,162.26,162.19,15.7107]
[1723164511868,32.73,162.22,162.16,6.6001]
[1723164512077,32.73,162.2,162.14,15.7107]
[1723164512272,38.8952,162.2,162.14,21.8778]
[1723164512447,32.73,162.2,162.14,15.7107]
[1723164512848,32.73,162.18,162.12,12.7681]
[1723164513169,32.73,162.18,162.12,6.6001]
[1723164513170,6.1665,162.17,162.12,6.6001]
[1723164513565,38.896,162.18,162.12,12.7683]
[1723164513951,38.896,162.18,162.13,6.1678]
[1723164514266,32.73,162.18,162.13,6.1678]
[1723164514471,32.73,162.18,162.12,28.1886]
[1723164514787,32.73,162.18,162.14,6.1674]
[1723164514974,6.1655,162.2,162.12,22.0204]
[1723164514975,32.73,162.2,162.12,22.0204]
[1723164515488,32.73,162.2,162.15,6.167]
[1723164516469,32.73,162.2,162.13,6.1678]
[1723164516675,32.73,162.2,162.14,6.1674]
[1723164516676,38.8954,162.2,162.14,6.1674]
[1723164516983,38.8954,162.2,162.12,28.1882]
[1723164516984,6.1657,162.19,162.12,28.1882]
[1723164517180,6.1657,162.19,162.14,6.1673]
[1723164517383,38.8952,162.2,162.14,6.1673]
[1723164517570,32.73,162.2,162.13,6.1678]
[1723164517958,6.1656,162.19,162.14,6.1674]
[1723164518384,38.8952,162.2,162.14,6.1674]
[1723164518684,32.73,162.2,162.15,21.5845]
[1723164518896,6.1661,162.18,162.13,6.1675]
[1723164519086,38.8961,162.18,162.13,6.1675]
[1723164519386,32.73,162.16,162.1,15.7107]
[1723164519775,6.1671,162.15,162.1,15.7107]
[1723164519960,6.1671,162.15,162.1,21.8796]
[1723164519961,6.1674,162.15,162.1,21.8796]
[1723164520285,32.73,162.16,162.11,6.1686]
[1723164520463,32.73,162.16,162.1,21.8797]
[1723164521068,32.73,162.16,162.11,6.1686]
[1723164521397,32.73,162.2,162.11,1.233475]
[1723164521557,38.8952,162.2,162.14,6.1671]
[1723164521991,6.1656,162.19,162.14,6.1671]
[1723164522486,32.73,162.2,162.15,6.1669]
[1723164522694,38.8947,162.22,162.16,6.1666]
[1723164522986,6.1654,162.2,162.14,6.1674]
[1723164523160,6.1654,162.2,162.13,15.4193]
[1723164523161,32.73,162.2,162.13,15.4193]
[1723164523355,6.1651,162.21,162.15,6.1671]
[1723164524283,15.4094,162.24,162.13,15.4193]
[1723164524284,32.73,162.2,162.13,15.4193]
[1723164524870,6.1714,162.04,161.97,2.27203764]
[1723164525191,104.05305071,162.03,161.87,15.3653]
[1723164525368,32.73,161.9,161.86,10.52611378]
[1723164525560,32.73,161.9,161.86,0.843317]
[1723164526289,38.9066,161.9,161.86,0.843317]
[1723164526475,32.73,161.9,161.86,0.843317]
[1723164526671,1.54440688,161.96,161.86,0.843317]
[1723164526986,32.73,161.87,161.86,0.843317]
[1723164527165,1.54475539,161.87,161.86,0.843317]
[1723164527365,67.0047559,161.87,161.71,15.459]
[1723164527561,1.5447559,161.87,161.71,21.6427]
[1723164527793,32.73,161.76,161.71,21.6427]
[1723164528385,1.54565054,161.83,161.71,21.6427]
[1723164528386,1.54565054,161.83,161.71,15.459]
[1723164528590,32.73,161.77,161.71,15.459]
[1723164528787,1.54565054,161.83,161.71,15.459]
[1723164528989,32.73,161.77,161.71,15.459]
[1723164529301,6.1805,161.8,161.73,6.183]
[1723164529595,32.73,161.77,161.73,6.183]
[1723164529763,40.42,161.81,161.73,6.183]
[1723164530082,1.54557576,161.8,161.73,6.1828]
[1723164530278,40.42,161.81,161.74,6.1826]
[1723164530279,1.5455273,161.79,161.74,6.1826]
[1723164531066,1.5455273,161.79,161.74,15.4561]
[1723164531272,40.42,161.84,161.77,6.1814]
[1723164531572,30.0,161.78,161.77,6.1814]
[1723164532495,12.15590032,161.87,161.77,15.4531]
[1723164532496,18.33370032,161.87,161.77,15.4531]
[1723164532786,45.0,161.86,161.77,15.4531]
[1723164533465,16.78835851,161.87,161.77,15.4531]
[1723164533686,16.78835851,161.87,161.81,6.18]
[1723164534376,10.61055851,161.87,161.81,6.18]
[1723164534575,10.61055851,161.87,161.8,15.4506]
[1723164534762,6.1774,161.88,161.8,15.4506]
[1723164534962,1.54492707,161.87,161.8,15.4506]
[1723164535580,7.72142256,161.91,161.84,6.1788]
[1723164535781,6.1765,161.91,161.83,15.4479]
[1723164536287,41.9646363,161.94,161.81,15.7905]
[1723164536489,6.177,161.89,161.83,6.1793]
[1723164536692,7.72166745,161.89,161.83,6.1793]
[1723164537074,1.54466745,161.89,161.81,37.4195]
[1723164537284,1.54466745,161.89,161.82,6.1796]
[1723164537578,7.72166745,161.89,161.83,6.1792]
[1723164537774,45.0,161.9,161.85,6.1785]
[1723164538097,1.54461444,161.89,161.84,15.447]
[1723164538296,6.1767,161.9,161.84,15.447]
[1723164538469,1.54472258,161.89,161.81,15.7905]
[1723164538994,6.1776,161.88,161.83,6.1792]
[1723164539196,6.1776,161.88,161.8,22.029]
[1723164539483,1.54488957,161.87,161.8,22.029]
[1723164539893,1.54488957,161.87,161.83,6.1792]
[1723164540186,1.54488957,161.87,161.8,22.029]
[1723164540397,40.42,161.91,161.83,15.4481]
[1723164540574,45.0,161.9,161.83,15.4481]
[1723164540774,51.1767,161.9,161.84,6.1789]
[1723164540989,51.1767,161.9,161.85,6.1785]
[1723164541503,45.0,161.9,161.85,6.1785]
[1723164541803,6.43898261,161.94,161.86,15.4453]
[1723164541979,6.1743,161.96,161.9,6.1765]
[1723164542311,1.5441844,161.95,161.89,15.4424]
[1723164542479,6.1736,161.98,161.93,6.1754]
[1723164542798,6.1732,161.99,161.93,6.1754]
[1723164542975,6.5177,162.01,161.92,15.4392]
[1723164543181,8.06158809,162.01,161.92,15.4392]
[1723164543489,40.42,162.0,161.92,15.4392]
[1723164543693,6.43402981,162.02,161.92,15.4392]
[1723164543887,6.1729,162.0,161.95,6.1747]
[1723164544094,1.54361466,162.02,161.94,6.175]
[1723164544283,1.54367049,162.01,161.94,6.175]
[1723164544468,6.1734,161.99,161.92,21.6147]
[1723164544792,40.42,162.03,161.92,21.6147]
[1723164544793,6.174,161.97,161.92,21.6147]
[1723164544979,1.54390147,161.96,161.92,21.6147]
[1723164545177,1.54390147,161.96,161.93,6.1753]
[1723164545378,46.8621167,162.03,161.95,15.4363]
[1723164545594,6.1719,162.03,161.95,15.4363]
[1723164546098,1.54354217,162.02,161.97,6.1739]
[1723164546317,1.54328159,162.01,161.85,6.022]
[1723164546592,77.434,162.06,161.85,21.4675]
[1723164546593,40.42,161.96,161.85,21.4675]
[1723164546767,1.54441417,161.95,161.87,6.1777]
[1723164546974,1.54441417,161.95,161.88,6.1773]
[1723164547280,6.1753,161.94,161.89,6.177]
[1723164547482,1.54426055,161.93,161.88,21.6208]
[1723164547682,1.54427231,161.92,161.88,21.6208]
[1723164548387,1.54427231,161.92,161.88,15.4434]
[1723164548604,7.71921003,161.95,161.88,15.4434]
[1723164549105,6.1752,161.94,161.88,15.4434]
[1723164549400,1.54411149,161.95,161.88,15.4434]
[1723164549619,1.54400453,161.99,161.92,6.1755]
[1723164549777,32.99,161.97,161.92,6.1755]
[1723164550207,32.99,161.97,161.93,6.1752]
[1723164550418,32.99,161.97,161.91,15.4405]
[1723164550991,1.54394786,161.98,161.91,15.4405]
[1723164551198,21.87034103,162.03,161.99,6.173]
[1723164551199,6.44034103,162.03,161.99,6.173]
[1723164551508,6.1716,162.03,161.97,21.6083]
[1723164551713,7.71496525,162.03,161.98,6.1735]
[1723164552014,6.1709,162.05,161.97,15.4347]
[1723164552335,32.99,162.06,162.01,6.1724]
[1723164552813,39.1598,162.08,162.02,6.1719]
[1723164553119,6.1687,162.11,162.06,6.1704]
[1723164553287,39.1583,162.12,162.06,6.1704]
[1723164553604,39.1578,162.14,162.08,6.1697]
[1723164553792,39.157,162.16,162.09,15.4233]
[1723164553994,32.99,162.16,162.11,6.1685]
[1723164554306,34.53201788,162.16,162.09,15.4233]
[1723164554890,32.99,162.14,162.05,21.9596]
[1723164555205,1.54239538,162.13,162.05,21.9596]
[1723164555404,7.71039538,162.13,162.07,6.1698]
[1723164555593,1.54239538,162.13,162.08,6.1697]
[1723164555985,7.71029538,162.13,162.08,6.1697]
[1723164556215,6.44855563,162.2,162.16,6.1664]
[1723164556389,6.1637,162.24,162.18,6.1659]
[1723164556585,6.164,162.23,162.18,6.1659]
[1723164557091,1.5415209,162.26,162.17,6.1663]
[1723164557317,16.9490209,162.26,162.15,15.4173]
[1723164557506,6.1644,162.22,162.16,6.1666]
[1723164557795,1.54160826,162.21,162.16,6.1666]
[1723164558004,6.1644,162.22,162.16,6.1666]
[1723164558992,2.38488611,162.27,162.15,15.4173]
[1723164559197,6.1637,162.24,162.18,6.1659]
[1723164559806,6.1641,162.23,162.17,6.1663]
[1723164560016,0.843317,162.27,162.17,6.1663]
[1723164560204,6.1641,162.23,162.17,6.1663]
[1723164563218,6.1644,162.22,162.17,6.1663]
[1723164563411,15.83091986,162.24,162.17,6.1663]
[1723164563600,45.0,162.23,162.17,6.1663]
[1723164563807,45.0,162.23,162.18,6.1658]
[1723164564190,51.164,162.23,162.18,6.1658]
[1723164564396,51.164,162.23,162.17,6.1663]
[1723164564604,6.1637,162.24,162.18,6.1658]
[1723164565019,6.1641,162.23,162.18,6.1658]
[1723164565519,9.66672777,162.25,162.19,6.1655]
[1723164565830,9.66672777,162.25,162.18,15.4149]
[1723164565831,0.843317,162.27,162.18,15.4149]
[1723164565999,45.843317,162.27,162.18,15.4149]
[1723164566995,52.28720589,162.27,162.18,15.4149]
[1723164567345,6.1641,162.23,162.18,15.4149]
[1723164567493,1.54141734,162.22,162.18,15.4149]
[1723164568613,6.1641,162.23,162.18,21.5808]
[1723164569017,6.1635,162.25,162.18,15.4149]
[1723164569218,6.1629,162.26,162.2,6.1651]
[1723164569402,45.0,162.25,162.2,6.1651]
[1723164569720,51.1633,162.25,162.2,6.1651]
[1723164570224,45.0,162.25,162.22,6.1644]
[1723164570518,0.843317,162.27,162.23,6.1639]
[1723164570723,0.843317,162.27,162.22,6.1644]
[1723164570909,7.005917,162.27,162.22,6.1644]
[1723164572326,0.843317,162.27,162.22,6.1644]
[1723164572709,7.006017,162.27,162.22,6.1644]
[1723164572914,8.54712774,162.27,162.22,6.1644]
[1723164573519,7.006017,162.27,162.22,6.1644]
[1723164573727,0.843317,162.27,162.25,6.1632]
[1723164573915,0.843317,162.27,162.24,15.4091]
[1723164574113,0.843317,162.27,162.26,6.1629]
[1723164574415,0.843317,162.27,162.25,6.1633]
[1723164575531,0.843317,162.27,162.26,6.1629]
[1723164580305,6.1587,162.38,162.32,6.1605]
[1723164580520,6.1584,162.38,162.33,6.1602]
[1723164581233,42.5031822,162.39,162.31,21.5633]
[1723164581435,6.1588,162.37,162.32,6.1605]
[1723164582236,44.0433013,162.39,162.34,15.3997]
[1723164582526,15.8212822,162.39,162.34,21.5596]
[1723164582708,9.6631822,162.39,162.35,6.1595]
[1723164583234,6.1572,162.41,162.35,6.1595]
[1723164583729,6.1572,162.41,162.34,15.3997]
[1723164584026,7.69693663,162.41,162.34,15.3997]
[1723164584221,6.1572,162.41,162.34,15.3997]
[1723164584816,0.843317,162.43,162.39,6.158]
[1723164585612,0.843317,162.43,162.4,6.1575]
[1723164585825,0.843317,162.43,162.4,15.3939]
[1723164586036,0.843317,162.43,162.42,6.1568]
[1723164587126,0.843317,162.43,162.42,27.2164]
[1723164589126,0.843317,162.43,162.42,60.0564]
[1723164589322,257.0,162.54,162.44,15.3895]
[1723164589524,32.84,162.56,162.44,49.46041595]
[1723164589711,32.84,162.56,162.42,21.0596]
[1723164589712,6.1524,162.54,162.49,6.1541]
[1723164589923,1.53848267,162.56,162.47,15.3871]
[1723164590211,6.1523,162.55,162.47,15.3871]
[1723164590842,6.1512,162.57,162.5,15.3844]
[1723164591333,6.1516,162.56,162.5,21.5382]
[1723164591538,6.1511,162.57,162.51,6.1534]
[1723164591832,6.1511,162.58,162.52,6.1529]
[1723164592046,35.22158589,162.6,162.5,21.5378]
[1723164592393,35.22158589,162.6,162.5,48.2244]
[1723164592394,0.843317,162.6,162.5,48.2244]
[1723164592511,33.683317,162.6,162.5,48.2244]
[1723164592714,6.1512,162.57,162.52,6.1529]
[1723164593117,6.1512,162.57,162.5,54.3779]
[1723164593332,6.1512,162.57,162.5,48.2244]
[1723164594745,6.1515,162.56,162.51,6.1534]
[1723164595120,32.84,162.58,162.51,6.1534]
[1723164595816,6.1516,162.56,162.5,21.5382]
[1723164596050,1.53828359,162.55,162.46,15.3877]
[1723164596350,51.1523,162.55,162.49,6.154]
[1723164596752,7.69082696,162.54,162.46,48.2277]
[1723164596923,2.38181716,162.6,162.49,15.385]
[1723164597122,32.84,162.58,162.49,15.385]
[1723164597435,45.0,162.57,162.49,15.385]
[1723164597640,6.1523,162.54,162.49,21.539]
[1723164597936,1.5384924,162.53,162.49,21.5391]
[1723164598928,1.53847081,162.52,162.49,15.385]
[1723164599130,1.53846366,162.54,162.49,15.385]
[1723164599634,7.69086366,162.54,162.49,15.385]
[1723164600235,6.1527,162.53,162.49,15.385]
[1723164600446,1.53852108,162.54,162.49,15.385]
[1723164600816,7.69082108,162.54,162.49,21.5392]
[1723164601118,7.69082108,162.54,162.49,15.385]
[1723164601340,7.69082108,162.54,162.49,21.5391]
[1723164601341,1.53852108,162.54,162.49,21.5391]
[1723164601644,6.1527,162.53,162.49,15.385]
[1723164601829,6.1527,162.53,162.4,66.00673692]
[1723164601830,32.84,162.5,162.38,6.4967]
[1723164602024,38.9953,162.46,162.4,15.3933]
[1723164602229,1.53924725,162.45,162.4,15.3933]
[1723164602927,32.84,162.5,162.43,15.3909]
[1723164603236,1.53902983,162.49,162.43,15.3909]
[1723164603534,32.84,162.5,162.43,15.3909]
[1723164603741,38.9939,162.5,162.44,6.1561]
[1723164604122,32.84,162.5,162.45,6.1556]
[1723164604331,32.84,162.5,162.43,21.5471]
[1723164604629,38.9942,162.5,162.43,21.5471]
[1723164604841,12.58268841,162.55,162.46,15.3877]
[1723164605037,6.1523,162.55,162.5,6.1538]
[1723164605344,32.84,162.56,162.46,15.3877]
[1723164605345,6.0809,162.58,162.47,22.3227]
[1723164605551,38.9209,162.58,162.52,15.3824]
[1723164605736,6.1512,162.57,162.52,15.3824]
[1723164605931,6.1512,162.57,162.52,21.5353]
[1723164606326,32.84,162.58,162.53,6.1526]
[1723164606549,32.84,162.59,162.52,15.3824]
[1723164607228,6.1512,162.57,162.52,15.3824]
[1723164607731,38.9912,162.57,162.52,15.3824]
[1723164607931,38.9912,162.57,162.52,21.5353]